fUSD/lending_fUSD_20250213
["ID","MTS","AMOUNT","RATE_DAILY","PERIOD"]
[353019761,1739487045441,-500.0,0.00014929,2]
[353019763,1739487045451,-4987.5,0.00014929,2]
[353019765,1739487045462,-560.27,0.00014929,2]
[353019768,1739487045472,-384.97035586,0.00014929,2]
[353019770,1739487045482,-992.98,0.00014929,2]
[353019772,1739487045492,-3337.93,0.00014929,2]
[353019774,1739487045501,-924.44,0.00014929,2]
[353019776,1739487045511,-825.98,0.00014929,2]
[353019778,1739487045521,-1340.76,0.00014929,2]
[353019780,1739487045531,-2620.05,0.00014929,2]
[353019782,1739487045542,-1967.28,0.00014929,2]
[353019784,1739487045552,-500.0,0.00014929,2]
[353019786,1739487045562,-1579.3,0.00014929,2]
[353019788,1739487045572,-500.0,0.00014929,2]
[353019790,1739487045582,-1314.28,0.0001493,2]
[353019792,1739487045592,-500.0,0.0001493,2]
[353019794,1739487045602,-1385.21,0.0001493,2]
[353019796,1739487045612,-1270.53,0.0001493,2]
[353019797,1739487045621,-1591.93,0.0001493,2]
[353019800,1739487045632,-611.37,0.0001493,2]
[353019801,1739487045641,-2775.18,0.0001493,2]
[353019803,1739487045650,-877.23,0.0001493,2]
[353019805,1739487045660,-504.22,0.0001493,2]
[353019807,1739487045671,-1659.27,0.0001493,2]
[353019809,1739487045681,-732.38,0.0001493,2]
[353019811,1739487045690,-516.65,0.00014931,2]
[353019813,1739487045700,-968.56,0.00014931,2]
[353019815,1739487045709,-500.0,0.00014931,2]
[353019817,1739487045718,-849.63,0.00014931,2]
[353019819,1739487045728,-28293.0380159,0.00014982,3]
[353019821,1739487045738,-510.44,0.00015,2]
[353019823,1739487045747,-28293.0380159,0.00015001,3]
[353019825,1739487045758,-500.0,0.0001501,2]
[353019827,1739487045768,-2140.4,0.0001501,2]
[353019829,1739487045777,-500.0,0.00015011,2]
[353019831,1739487045788,-4987.5,0.00015011,2]
[353019833,1739487045799,-560.27,0.00015011,2]
[353019837,1739487045809,-992.98,0.00015011,2]
[353019839,1739487045819,-3337.93,0.00015011,2]
[353019841,1739487045830,-924.44,0.00015011,2]
[353019843,1739487045840,-825.98,0.00015011,2]
[353019845,1739487045850,-1340.76,0.00015011,2]
[353019847,1739487045860,-2620.05,0.00015011,2]
[353019850,1739487045870,-1967.28,0.00015011,2]
[353019854,1739487045879,-500.0,0.00015011,2]
[353019857,1739487045890,-1579.3,0.00015011,2]
[353019860,1739487045900,-500.0,0.00015011,2]
[353019862,1739487045910,-1314.28,0.00015012,2]
[353019864,1739487045919,-500.0,0.00015012,2]
[353019866,1739487045929,-1385.21,0.00015012,2]
[353019868,1739487045939,-1270.53,0.00015012,2]
[353020021,1739487047382,-1591.93,0.00015012,2]
[353020023,1739487047403,-611.37,0.00015012,2]
[353020026,1739487047419,-2775.18,0.00015012,2]
[353020028,1739487047434,-877.23,0.00015012,2]
[353020031,1739487047451,-504.22,0.00015012,2]
[353020034,1739487047466,-1659.27,0.00015012,2]
[353020036,1739487047477,-732.38,0.00015012,2]
[353020038,1739487047487,-516.65,0.00015013,2]
[353020040,1739487047497,-968.56,0.00015013,2]
[353020042,1739487047508,-500.0,0.00015013,2]
[353020044,1739487047518,-849.63,0.00015013,2]
[353020046,1739487047529,-875.2,0.00015014,2]
[353020048,1739487047539,-265.80282935,0.00015068,3]
[353020050,1739487047548,-999.0,0.00015068,2]
[353020052,1739487047559,-300.0,0.00015068,2]
[353020054,1739487047569,-28293.0380159,0.00015074,3]
[353020056,1739487047579,-28293.0380159,0.00015084,3]
[353020058,1739487047591,-593.03581632,0.00015092,2]
[353020060,1739487047601,-2140.4,0.00015092,2]
[353020062,1739487047610,-500.0,0.00015093,2]
[353020064,1739487047620,-4987.5,0.00015093,2]
[353020066,1739487047630,-560.27,0.00015093,2]
[353020068,1739487047641,-992.98,0.00015093,2]
[353020070,1739487047652,-3337.93,0.00015093,2]
[353020072,1739487047662,-924.44,0.00015093,2]
[353020075,1739487047673,-825.98,0.00015093,2]
[353020077,1739487047683,-1340.76,0.00015093,2]
[353020079,1739487047693,-2620.05,0.00015093,2]
[353020081,1739487047703,-1967.28,0.00015093,2]
[353020083,1739487047713,-575.45779484,0.00015093,2]
[353020085,1739487047723,-1579.3,0.00015093,2]
[353020087,1739487047734,-500.0,0.00015093,2]
[353020088,1739487047744,-1314.28,0.00015094,2]
[353020090,1739487047754,-500.0,0.00015094,2]
[353020093,1739487047765,-1385.21,0.00015094,2]
[353020095,1739487047775,-1270.53,0.00015094,2]
[353020097,1739487047786,-1591.93,0.00015094,2]
[353020099,1739487047796,-611.37,0.00015094,2]
[353020101,1739487047806,-2775.18,0.00015094,2]
[353020103,1739487047816,-877.23,0.00015094,2]
[353020105,1739487047826,-504.22,0.00015094,2]
[353020107,1739487047837,-1659.27,0.00015094,2]
[353020109,1739487047848,-732.38,0.00015094,2]
[353020111,1739487047858,-516.65,0.00015095,2]
[353020113,1739487047868,-968.56,0.00015095,2]
[353020115,1739487047878,-500.0,0.00015095,2]
[353020117,1739487047889,-849.63,0.00015095,2]
[353020119,1739487047899,-2558.99642595,0.00015152,2]
[353020121,1739487047909,-28293.0380159,0.00015158,3]
[353020123,1739487047921,-28293.0380159,0.00015166,3]
[353020125,1739487047931,-2140.4,0.00015174,2]
[353020127,1739487047941,-500.0,0.00015175,2]
[353020129,1739487047950,-4987.5,0.00015175,2]
[353020131,1739487047960,-560.27,0.00015175,2]
[353020133,1739487047971,-992.98,0.00015175,2]
[353020135,1739487047981,-3337.93,0.00015175,2]
[353020137,1739487047993,-924.44,0.00015175,2]
[353020139,1739487048003,-825.98,0.00015175,2]
[353020141,1739487048015,-1340.76,0.00015175,2]
[353020143,1739487048026,-2620.05,0.00015175,2]
[353020145,1739487048037,-1967.28,0.00015175,2]
[353020147,1739487048048,-1579.3,0.00015175,2]
[353020149,1739487048058,-500.0,0.00015175,2]
[353020151,1739487048069,-1314.28,0.00015176,2]
[353020153,1739487048078,-500.0,0.00015176,2]
[353020155,1739487048089,-1385.21,0.00015176,2]
[353020157,1739487048099,-1270.53,0.00015176,2]
[353020159,1739487048109,-1591.93,0.00015176,2]
[353020161,1739487048119,-611.37,0.00015176,2]
[353020163,1739487048129,-2775.18,0.00015176,2]
[353020165,1739487048139,-877.23,0.00015176,2]
[353020167,1739487048151,-504.22,0.00015176,2]
[353020169,1739487048161,-1659.27,0.00015176,2]
[353020171,1739487048173,-732.38,0.00015176,2]
[353020173,1739487048185,-516.65,0.00015178,2]
[353020175,1739487048197,-968.56,0.00015178,2]
[353020177,1739487048208,-500.0,0.00015178,2]
[353020179,1739487048218,-849.63,0.00015178,2]
[353020181,1739487048228,-493.44,0.00015178,2]
[353020183,1739487048239,-28293.0380159,0.00015247,3]
[353020185,1739487048249,-2140.4,0.00015256,2]
[353020187,1739487048260,-500.0,0.00015257,2]
[353020189,1739487048270,-4987.5,0.00015257,2]
[353020191,1739487048282,-560.27,0.00015257,2]
[353020193,1739487048293,-992.98,0.00015257,2]
[353020195,1739487048303,-3337.93,0.00015257,2]
[353020197,1739487048314,-924.44,0.00015257,2]
[353020198,1739487048324,-825.98,0.00015257,2]
[353020201,1739487048335,-1340.76,0.00015257,2]
[353020203,1739487048346,-2620.05,0.00015257,2]
[353020205,1739487048357,-1967.28,0.00015257,2]
[353020206,1739487048367,-1579.3,0.00015257,2]
[353020208,1739487048379,-500.0,0.00015257,2]
[353020211,1739487048393,-1314.28,0.00015258,2]
[353020213,1739487048404,-500.0,0.00015258,2]
[353020215,1739487048416,-1385.21,0.00015258,2]
[353020217,1739487048430,-1270.53,0.00015258,2]
[353020219,1739487048442,-1591.93,0.00015258,2]
[353020221,1739487048453,-611.37,0.00015258,2]
[353020223,1739487048465,-2775.18,0.00015258,2]
[353020225,1739487048477,-877.23,0.00015258,2]
[353020227,1739487048488,-504.22,0.00015258,2]
[353020229,1739487048498,-1659.27,0.00015258,2]
[353020231,1739487048510,-732.38,0.00015258,2]
[353020233,1739487048521,-516.65,0.0001526,2]
[353020235,1739487048531,-968.56,0.0001526,2]
[353020237,1739487048542,-277.83,0.0001526,2]
[353020239,1739487048554,-849.63,0.0001526,2]
[353020241,1739487048564,-166.66,0.00015302,2]
[353020243,1739487048574,-28293.0380159,0.00015321,3]
[353020245,1739487048585,-2140.4,0.00015338,2]
[353020247,1739487048596,-500.0,0.00015339,2]
[353020249,1739487048606,-4987.5,0.00015339,2]
[353020251,1739487048619,-560.27,0.00015339,2]
[353020253,1739487048629,-992.98,0.00015339,2]
[353020255,1739487048641,-3337.93,0.00015339,2]
[353020258,1739487048652,-924.44,0.00015339,2]
[353020260,1739487048662,-825.98,0.00015339,2]
[353020262,1739487048674,-1340.76,0.00015339,2]
[353020264,1739487048684,-2620.05,0.00015339,2]
[353020265,1739487048694,-1967.28,0.00015339,2]
[353020267,1739487048705,-1579.3,0.00015339,2]
[353020269,1739487048716,-180.75410186,0.00015339,2]
[353020272,1739487048727,-1314.28,0.00015341,2]
[353020274,1739487048737,-500.0,0.00015341,2]
[353020276,1739487048749,-1385.21,0.00015341,2]
[353020278,1739487048759,-1270.53,0.00015341,2]
[353020280,1739487048770,-1591.93,0.00015341,2]
[353020282,1739487048781,-611.37,0.00015341,2]
[353020284,1739487048791,-2775.18,0.00015341,2]
[353020286,1739487048802,-877.23,0.00015341,2]
[353020288,1739487048812,-504.22,0.00015341,2]
[353020290,1739487048822,-1659.27,0.00015341,2]
[353020292,1739487048832,-732.38,0.00015341,2]
[353020294,1739487048843,-516.65,0.00015342,2]
[353020296,1739487048853,-968.56,0.00015342,2]
[353020298,1739487048863,-849.63,0.00015342,2]
[353020300,1739487048875,-1000.0,0.00015381,2]
[353020302,1739487048885,-1059.0,0.00015389,2]
[353020305,1739487048895,-2140.4,0.00015421,2]
[353020307,1739487048906,-500.0,0.00015422,2]
[353020308,1739487048915,-4987.5,0.00015422,2]
[353020310,1739487048926,-560.27,0.00015422,2]
[353020312,1739487048937,-992.98,0.00015422,2]
[353020314,1739487048947,-3337.93,0.00015422,2]
[353020316,1739487048958,-924.44,0.00015422,2]
[353020318,1739487048969,-825.98,0.00015422,2]
[353020320,1739487048982,-1340.76,0.00015422,2]
[353020322,1739487048993,-2620.05,0.00015422,2]
[353020324,1739487049004,-1967.28,0.00015422,2]
[353020326,1739487049015,-1579.3,0.00015422,2]
[353020328,1739487049026,-1314.28,0.00015423,2]
[353020330,1739487049038,-500.0,0.00015423,2]
[353020332,1739487049050,-1385.21,0.00015423,2]
[353020334,1739487049062,-1270.53,0.00015423,2]
[353020336,1739487049072,-1591.93,0.00015423,2]
[353020338,1739487049082,-611.37,0.00015423,2]
[353020340,1739487049092,-2775.18,0.00015423,2]
[353020342,1739487049101,-877.23,0.00015423,2]
[353020344,1739487049112,-504.22,0.00015423,2]
[353020346,1739487049122,-1659.27,0.00015423,2]
[353020348,1739487049132,-732.38,0.00015423,2]
[353020350,1739487049142,-516.65,0.00015424,2]
[353020351,1739487049152,-968.56,0.00015424,2]
[353020352,1739487049161,-849.63,0.00015424,2]
[353020353,1739487049173,-1600.0,0.00015447,2]
[353020354,1739487049183,-1343.0,0.00015474,2]
[353020355,1739487049193,-2140.4,0.00015503,2]
[353020356,1739487049203,-465.13945978,0.00015504,2]
[353020357,1739487049214,-4987.5,0.00015504,2]
[353020358,1739487049224,-560.27,0.00015504,2]
[353020359,1739487049234,-992.98,0.00015504,2]
[353020360,1739487049244,-3337.93,0.00015504,2]
[353020361,1739487049255,-924.44,0.00015504,2]
[353020363,1739487049265,-825.98,0.00015504,2]
[353020365,1739487049277,-1340.76,0.00015504,2]
[353020367,1739487049287,-2620.05,0.00015504,2]
[353020369,1739487049298,-1967.28,0.00015504,2]
[353020371,1739487049310,-1579.3,0.00015504,2]
[353020373,1739487049320,-1314.28,0.00015505,2]
[353020375,1739487049331,-500.0,0.00015505,2]
[353020377,1739487049341,-1385.21,0.00015505,2]
[353020379,1739487049352,-1270.53,0.00015505,2]
[353020382,1739487049363,-1591.93,0.00015505,2]
[353020383,1739487049373,-611.37,0.00015505,2]
[353020385,1739487049385,-2775.18,0.00015505,2]
[353020387,1739487049398,-877.23,0.00015505,2]
[353020389,1739487049409,-504.22,0.00015505,2]
[353020391,1739487049422,-1659.27,0.00015505,2]
[353020393,1739487049434,-732.38,0.00015505,2]
[353020395,1739487049445,-516.65,0.00015506,2]
[353020397,1739487049455,-968.56,0.00015506,2]
[353020400,1739487049466,-849.63,0.00015506,2]
[353020402,1739487049476,-2140.4,0.00015585,2]
[353020404,1739487049486,-4987.5,0.00015586,2]
[353020406,1739487049496,-560.27,0.00015586,2]
[353020408,1739487049508,-992.98,0.00015586,2]
[353020410,1739487049525,-3337.93,0.00015586,2]
[353020412,1739487049541,-924.44,0.00015586,2]
[353020414,1739487049551,-825.98,0.00015586,2]
[353020416,1739487049561,-1340.76,0.00015586,2]
[353020418,1739487049571,-2620.05,0.00015586,2]
[353020420,1739487049582,-1967.28,0.00015586,2]
[353020422,1739487049593,-1579.3,0.00015586,2]
[353020423,1739487049603,-1314.28,0.00015587,2]
[353020425,1739487049613,-500.0,0.00015587,2]
[353020427,1739487049623,-1385.21,0.00015587,2]
[353020430,1739487049634,-1270.53,0.00015587,2]
[353020432,1739487049644,-1591.93,0.00015587,2]
[353020434,1739487049655,-611.37,0.00015587,2]
[353020436,1739487049665,-2775.18,0.00015587,2]
[353020438,1739487049676,-877.23,0.00015587,2]
[353020440,1739487049686,-504.22,0.00015587,2]
[353020442,1739487049695,-1659.27,0.00015587,2]
[353020444,1739487049705,-732.38,0.00015587,2]
[353020446,1739487049714,-516.83947156,0.00015589,2]
[353020448,1739487049724,-968.61962902,0.00015589,2]
[353020450,1739487049734,-849.64303761,0.00015589,2]
[353020452,1739487049743,-506.33,0.00015589,2]
[353020454,1739487049753,-2140.4,0.00015667,2]
[353020456,1739487049763,-4987.5,0.00015668,2]
[353020458,1739487049772,-560.27,0.00015668,2]
[353020460,1739487049782,-992.98,0.00015668,2]
[353020462,1739487049792,-3337.93,0.00015668,2]
[353020464,1739487049801,-924.44,0.00015668,2]
[353020466,1739487049811,-825.98,0.00015668,2]
[353020468,1739487049820,-1340.76,0.00015668,2]
[353020470,1739487049829,-2620.05,0.00015668,2]
[353020472,1739487049839,-1967.28,0.00015668,2]
[353020474,1739487049849,-1579.3,0.00015668,2]
[353020476,1739487049858,-1314.28,0.00015669,2]
[353020478,1739487049867,-500.0,0.00015669,2]
[353020480,1739487049877,-1385.21,0.00015669,2]
[353020482,1739487049886,-1270.53,0.00015669,2]
[353020483,1739487049895,-1591.93,0.00015669,2]
[353020485,1739487049905,-611.37,0.00015669,2]
[353020491,1739487049945,-2775.18,0.00015669,2]
[353020493,1739487049957,-877.23,0.00015669,2]
[353020495,1739487049967,-504.22,0.00015669,2]
[353020497,1739487049976,-1659.27,0.00015669,2]
[353020499,1739487049985,-732.38,0.00015669,2]
[353020501,1739487049994,-150.54,0.00015678,2]
[353020503,1739487050004,-166.66,0.00015748,2]
[353020505,1739487050013,-2140.4,0.00015749,2]
[353020507,1739487050022,-4987.5,0.0001575,2]
[353020509,1739487050031,-560.27,0.0001575,2]
[353020511,1739487050041,-992.98,0.0001575,2]
[353020513,1739487050051,-3337.93,0.0001575,2]
[353020514,1739487050060,-924.44,0.0001575,2]
[353020516,1739487050070,-825.98,0.0001575,2]
[353020519,1739487050080,-1340.76,0.0001575,2]
[353020521,1739487050090,-2620.05,0.0001575,2]
[353020523,1739487050100,-1967.28,0.0001575,2]
[353020525,1739487050110,-1579.3,0.0001575,2]
[353020527,1739487050119,-1314.28,0.00015752,2]
[353020529,1739487050128,-214.9934173,0.00015752,2]
[353020531,1739487050137,-1385.21,0.00015752,2]
[353020532,1739487050147,-1270.53,0.00015752,2]
[353020534,1739487050157,-1591.93,0.00015752,2]
[353020535,1739487050167,-611.37,0.00015752,2]
[353020536,1739487050178,-2775.18,0.00015752,2]
[353020537,1739487050187,-877.23,0.00015752,2]
[353020538,1739487050197,-504.22,0.00015752,2]
[353020539,1739487050206,-1659.27,0.00015752,2]
[353020540,1739487050216,-732.38,0.00015752,2]
[353020541,1739487050226,-2140.57921781,0.00015832,2]
[353020542,1739487050235,-4987.66604601,0.00015833,2]
[353020543,1739487050245,-560.39293594,0.00015833,2]
[353020544,1739487050256,-993.21708959,0.00015833,2]
[353020545,1739487050265,-3338.15575483,0.00015833,2]
[353020546,1739487050275,-924.64313528,0.00015833,2]
[353020547,1739487050285,-826.07960866,0.00015833,2]
[353020548,1739487050295,-1340.93144322,0.00015833,2]
[353020549,1739487050305,-2620.15406295,0.00015833,2]
[353020550,1739487050315,-1967.46920703,0.00015833,2]
[353020551,1739487050325,-1579.3808003,0.00015833,2]
[353020552,1739487050334,-1314.47711858,0.00015834,2]
[353020553,1739487050344,-1385.22818316,0.00015834,2]
[353020554,1739487050353,-1270.59103756,0.00015834,2]
[353020555,1739487050363,-1591.95612588,0.00015834,2]
[353020556,1739487050372,-611.39756416,0.00015834,2]
[353020557,1739487050382,-2775.19329278,0.00015834,2]
[353020558,1739487050396,-877.38665152,0.00015834,2]
[353020559,1739487050406,-504.36368081,0.00015834,2]
[353020560,1739487050415,-1659.45069347,0.00015834,2]
[353020561,1739487050425,-732.41112611,0.00015834,2]
[353020562,1739487050437,-176.0,0.0001589,2]
[353020563,1739487050447,-2558.99642595,0.00015929,2]
[353020564,1739487050456,-1298.42316,0.000161,2]
[353020565,1739487050466,-9999.99,0.00016116,2]
[353020566,1739487050476,-823.0,0.0001613,2]
[353020567,1739487050486,-500.0,0.00016438,2]
[353020568,1739487050495,-685.63,0.00016438,2]
[353020569,1739487050507,-685.63,0.00016438,2]
[353020570,1739487050516,-685.63,0.00016438,2]
[353020571,1739487050526,-685.63,0.00016438,2]
[353020572,1739487050535,-685.63,0.00016438,2]
[353020573,1739487050545,-685.63,0.00016438,2]
[353020574,1739487050555,-685.63,0.00016438,2]
[353020575,1739487050565,-685.63,0.00016438,2]
[353020576,1739487050574,-685.63,0.00016438,2]
[353020577,1739487050583,-685.63,0.00016438,2]
[353020578,1739487050593,-685.63,0.00016438,2]
[353020579,1739487050604,-685.63,0.00016438,2]
[353020580,1739487050614,-685.63,0.00016438,2]
[353020581,1739487050624,-685.63,0.00016438,2]
[353020582,1739487050634,-685.63,0.00016438,2]
[353020583,1739487050643,-685.63,0.00016438,2]
[353020584,1739487050653,-685.63,0.00016438,2]
[353020585,1739487050663,-685.63,0.00016438,2]
[353020586,1739487050672,-685.63,0.00016438,2]
[353020587,1739487050682,-685.63,0.00016438,2]
[353020588,1739487050691,-685.63,0.00016438,2]
[353020589,1739487050700,-685.63,0.00016438,2]
[353020590,1739487050710,-685.63,0.00016438,2]
[353020591,1739487050719,-685.74293087,0.00016438,2]
[353020592,1739487050729,-300.0,0.00016438,2]
[353020593,1739487050738,-300.0,0.00016438,2]
[353020594,1739487050747,-150.0,0.000165,2]
[353020595,1739487050757,-602.05,0.00016658,30]
[353020596,1739487050766,-2558.99642595,0.00016706,2]
[353020597,1739487050778,-179.88,0.00016712,2]
[353020598,1739487050788,-181.54,0.00016813,2]
[353020599,1739487050797,-1000.0,0.00016919,2]
[353020601,1739487050807,-500.0,0.00016924,2]
[353020602,1739487050816,-500.0,0.00016924,2]
[353020604,1739487050825,-500.0,0.00016924,2]
[353020606,1739487050835,-150.81,0.00016938,2]
[353020608,1739487050844,-1600.0,0.00016992,2]
[353020610,1739487050854,-2413.986,0.0001709,2]
[353020612,1739487050864,-186.969,0.0001709,2]
[353020614,1739487050874,-2000.0,0.00017091,2]
[353020616,1739487050883,-500.0,0.00017091,2]
[353020618,1739487050893,-201.45,0.00017123,2]
[353020620,1739487050903,-999.0,0.0001726,4]
[353020622,1739487050912,-875.2,0.00017278,2]
[353020624,1739487050922,-2025.0,0.0001728,2]
[353020626,1739487050931,-465.49,0.0001728,2]
[353020628,1739487050941,-569.0,0.0001728,2]
[353020629,1739487050950,-638.0,0.0001728,2]
[353020630,1739487050959,-3915.0,0.0001728,2]
[353020631,1739487050969,-150.0,0.0001728,2]
[353020632,1739487050979,-1109.0,0.0001728,2]
[353020633,1739487050988,-686.68,0.00017341,2]
[353020634,1739487050998,-2558.99642595,0.00017483,2]
[353020636,1739487051007,-1152.0,0.00017703,2]
[353020637,1739487051017,-500.0,0.0001798,2]
[353020638,1739487051026,-500.0,0.0001798,2]
[353020640,1739487051035,-500.0,0.0001798,2]
[353020641,1739487051044,-500.0,0.0001798,2]
[353020642,1739487051054,-500.0,0.0001798,2]
[353020643,1739487051063,-500.0,0.0001798,2]
[353020645,1739487051072,-500.0,0.0001798,2]
[353020646,1739487051081,-871.0,0.0001798,2]
[353020647,1739487051091,-500.0,0.0001798,2]
[353020648,1739487051101,-500.0,0.0001798,2]
[353020649,1739487051112,-500.0,0.0001798,2]
[353020650,1739487051122,-500.0,0.0001798,2]
[353020651,1739487051133,-500.0,0.0001798,2]
[353020652,1739487051142,-500.0,0.0001798,2]
[353020653,1739487051151,-500.0,0.0001798,2]
[353020654,1739487051160,-500.0,0.0001798,2]
[353020656,1739487051169,-500.0,0.0001798,2]
[353020657,1739487051180,-500.0,0.0001798,2]
[353020658,1739487051189,-500.0,0.0001798,2]
[353020659,1739487051198,-500.0,0.0001798,2]
[353020660,1739487051207,-500.0,0.0001798,2]
[353020661,1739487051217,-500.0,0.0001798,2]
[353020662,1739487051225,-500.0,0.0001798,2]
[353020663,1739487051234,-500.0,0.0001798,2]
[353020664,1739487051243,-500.0,0.0001798,2]
[353020665,1739487051252,-500.0,0.0001798,2]
[353020666,1739487051261,-500.0,0.0001798,2]
[353020667,1739487051270,-500.0,0.0001798,2]
[353020669,1739487051280,-500.0,0.0001798,2]
[353020671,1739487051289,-500.0,0.0001798,2]
[353020673,1739487051298,-500.0,0.0001798,2]
[353020674,1739487051307,-500.0,0.0001798,2]
[353020676,1739487051316,-500.0,0.0001798,2]
[353020678,1739487051326,-500.0,0.0001798,2]
[353020680,1739487051335,-500.0,0.0001798,2]
[353020682,1739487051344,-500.0,0.0001798,2]
[353020684,1739487051354,-500.0,0.0001798,2]
[353020686,1739487051363,-500.0,0.0001798,2]
[353020688,1739487051372,-500.0,0.0001798,2]
[353020690,1739487051383,-500.0,0.0001798,2]
[353020692,1739487051396,-500.0,0.0001798,2]
[353020695,1739487051406,-500.0,0.0001798,2]
[353020697,1739487051416,-500.0,0.0001798,2]
[353020698,1739487051427,-500.0,0.0001798,2]
[353020700,1739487051437,-500.0,0.0001798,2]
[353020702,1739487051447,-500.0,0.0001798,2]
[353020705,1739487051456,-500.0,0.0001798,2]
[353020706,1739487051467,-500.0,0.0001798,2]
[353020708,1739487051477,-500.0,0.0001798,2]
[353020710,1739487051487,-500.0,0.0001798,2]
[353020712,1739487051496,-500.0,0.0001798,2]
[353020714,1739487051507,-500.0,0.0001798,2]
[353020717,1739487051516,-500.0,0.0001798,2]
[353020718,1739487051525,-500.0,0.0001798,2]
[353020720,1739487051535,-500.0,0.0001798,2]
[353020722,1739487051545,-500.0,0.0001798,2]
[353020725,1739487051555,-500.0,0.0001798,2]
[353020726,1739487051564,-500.0,0.0001798,2]
[353020728,1739487051574,-500.0,0.0001798,2]
[353020730,1739487051583,-500.0,0.0001798,2]
[353020732,1739487051592,-500.0,0.0001798,2]
[353020735,1739487051603,-500.0,0.0001798,2]
[353020736,1739487051612,-500.0,0.0001798,2]
[353020738,1739487051621,-500.0,0.0001798,2]
[353020740,1739487051630,-500.0,0.0001798,2]
[353020742,1739487051639,-500.0,0.0001798,2]
[353020744,1739487051648,-500.0,0.0001798,2]
[353020746,1739487051657,-500.0,0.0001798,2]
[353020748,1739487051666,-500.0,0.0001798,2]
[353020750,1739487051676,-500.0,0.0001798,2]
[353020752,1739487051686,-500.0,0.0001798,2]
[353020754,1739487051696,-500.0,0.0001798,2]
[353020756,1739487051705,-500.0,0.0001798,2]
[353020758,1739487051715,-500.0,0.0001798,2]
[353020760,1739487051724,-500.0,0.0001798,2]
[353020762,1739487051734,-500.0,0.0001798,2]
[353020765,1739487051743,-500.0,0.0001798,2]
[353020766,1739487051753,-500.0,0.0001798,2]
[353020768,1739487051762,-500.0,0.0001798,2]
[353020770,1739487051771,-921.0,0.0001798,2]
[353020772,1739487051781,-500.0,0.0001802,2]
[353020774,1739487051790,-500.0,0.0001802,2]
[353020776,1739487051800,-2000.0,0.00018082,2]
[353020778,1739487051810,-200.0,0.00018082,2]
[353020780,1739487051820,-1298.42316,0.000181,2]
[353020782,1739487051829,-2558.99642595,0.0001826,2]
[353020784,1739487051838,-5800.0,0.00018309,2]
[353020786,1739487051847,-5800.0,0.00018318,2]
[353020788,1739487051857,-5800.0,0.00018326,2]
[353020790,1739487051867,-1000.0,0.00018458,2]
[353020792,1739487051876,-1600.0,0.00018537,2]
[353020794,1739487051885,-150.0,0.00018616,2]
[353020796,1739487051895,-150.0,0.00018616,2]
[353020798,1739487051904,-150.0,0.00018616,2]
[353020800,1739487051914,-2000.0,0.00018751,2]
[353020802,1739487051923,-150.0,0.00018961,2]
[353020804,1739487051932,-686.06010756,0.00019,2]
[353020806,1739487051942,-2558.99642595,0.00019037,2]
[353020808,1739487051951,-500.0,0.00019116,2]
[353020810,1739487051960,-500.0,0.00019116,2]
[353020812,1739487051969,-500.0,0.00019116,2]
[353020814,1739487051979,-150.0,0.00019178,2]
[353020816,1739487051988,-602.05,0.00019242,30]